[Event "GrandPrix_29.05"]
[Site "Chess.com"]
[Date "2020.05.29"]
[Round "1"]
[White "MAS_1704"]
[Black "PavelShkapenko"]
[Result "1/2-1/2"]
[WhiteElo "2055"]
[BlackElo "2257"]
[TimeControl "600+2"]
[EndTime "9:24:21 PDT"]
[Termination "Game drawn by agreement"]

1. d4 {[%clk 0:09:56.1]} 1... Nf6 {[%clk 0:10:00.3]} 2. Nf3 {[%clk 0:09:55.7]}
2... e6 {[%clk 0:10:01.3]} 3. Bf4 {[%clk 0:09:54.5]} 3... c5 {[%clk 0:10:01]} 4.
c3 {[%clk 0:09:54.4]} 4... b6 {[%clk 0:09:59.4]} 5. e3 {[%clk 0:09:51.5]} 5...
Bb7 {[%clk 0:10:00.2]} 6. a4 {[%clk 0:09:48.2]} 6... a6 {[%clk 0:09:59.3]} 7.
Nbd2 {[%clk 0:09:45.4]} 7... Be7 {[%clk 0:09:59.4]} 8. h3 {[%clk 0:09:42.2]}
8... O-O {[%clk 0:09:59.9]} 9. Bd3 {[%clk 0:09:39.5]} 9... cxd4 {[%clk
0:10:00.7]} 10. exd4 {[%clk 0:09:38.7]} 10... d6 {[%clk 0:10:02.1]} 11. Qe2
{[%clk 0:09:36.4]} 11... Nbd7 {[%clk 0:10:03.2]} 12. O-O {[%clk 0:09:36.4]}
12... Re8 {[%clk 0:10:04.3]} 13. Ne4 {[%clk 0:09:34.8]} 13... Nxe4 {[%clk
0:09:58.1]} 14. Bxe4 {[%clk 0:09:34.6]} 14... Bxe4 {[%clk 0:09:59.1]} 15. Qxe4
{[%clk 0:09:34.8]} 15... Nf6 {[%clk 0:09:39]} 16. Qd3 {[%clk 0:08:58.8]} 16...
Nd5 {[%clk 0:09:04]} 17. Bd2 {[%clk 0:08:36.6]} 17... Qd7 {[%clk 0:09:02.7]} 18.
Rfe1 {[%clk 0:08:28.2]} 18... b5 {[%clk 0:08:55.6]} 19. axb5 {[%clk 0:08:27]}
19... axb5 {[%clk 0:08:56.6]} 20. Qf1 {[%clk 0:08:02]} 20... Nb6 {[%clk
0:07:08]} 21. Rxa8 {[%clk 0:07:44.5]} 21... Rxa8 {[%clk 0:07:08.2]} 22. Ra1
{[%clk 0:07:44.3]} 22... Rxa1 {[%clk 0:05:51.3]} 23. Qxa1 {[%clk 0:07:43]} 23...
h6 {[%clk 0:05:52.8]} 24. b3 {[%clk 0:07:25]} 24... Qb7 {[%clk 0:05:29.9]} 25.
Qa5 {[%clk 0:07:13.7]} 25... Nd5 {[%clk 0:05:30.8]} 26. c4 {[%clk 0:06:09.2]}
26... bxc4 {[%clk 0:05:31.4]} 27. bxc4 {[%clk 0:06:09.4]} 27... Nf6 {[%clk
0:05:32.9]} 28. Be3 {[%clk 0:05:15.7]} 28... Ne4 {[%clk 0:05:26.1]} 29. Nd2
{[%clk 0:05:01.8]} 29... f5 {[%clk 0:04:52.9]} 30. Qb5 {[%clk 0:04:35.4]} 30...
Qxb5 {[%clk 0:03:39.5]} 31. cxb5 {[%clk 0:04:34.2]} 31... Nxd2 {[%clk
0:03:20.1]} 32. Bxd2 {[%clk 0:04:32.6]} 32... Bd8 {[%clk 0:03:21.2]} 33. Bb4
{[%clk 0:03:38.4]} 33... Bc7 {[%clk 0:03:20.9]} 34. Kf1 {[%clk 0:03:34.7]} 34...
Kf7 {[%clk 0:03:21.7]} 35. Ke2 {[%clk 0:03:28.7]} 35... Ke7 {[%clk 0:03:15.2]}
36. Kd3 {[%clk 0:03:18.1]} 36... Kd7 {[%clk 0:03:16.2]} 37. Kc4 {[%clk
0:03:04.3]} 37... g6 {[%clk 0:02:57]} 38. Bd2 {[%clk 0:02:47.4]} 38... h5 {[%clk
0:02:53.8]} 39. d5 {[%clk 0:02:42]} 39... e5 {[%clk 0:02:40.6]} 40. Be3 {[%clk
0:02:10.9]} 40... Kc8 {[%clk 0:02:23.6]} 41. b6 {[%clk 0:01:44.6]} 41... Bd8
{[%clk 0:02:24.6]} 42. Kb5 {[%clk 0:01:44.8]} 42... Kb7 {[%clk 0:02:25.8]} 43.
f3 {[%clk 0:01:40.3]} 43... Bh4 {[%clk 0:01:36.5]} 44. Bc1 {[%clk 0:00:47.5]}
44... e4 {[%clk 0:01:21.4]} 45. fxe4 {[%clk 0:00:42.8]} 45... fxe4 {[%clk
0:01:22.9]} 46. Bf4 {[%clk 0:00:23.5]} 46... Bf2 {[%clk 0:01:14.9]} 47. Bxd6
{[%clk 0:00:17.4]} 47... Bxb6 {[%clk 0:01:10.2]} 48. Kc4 {[%clk 0:00:14.9]}
48... Kc8 {[%clk 0:00:52.4]} 49. Bf4 {[%clk 0:00:10.4]} 49... Kd7 {[%clk
0:00:53.5]} 50. g3 {[%clk 0:00:09.9]} 50... Bf2 {[%clk 0:00:45.7]} 51. g4 {[%clk
0:00:10.8]} 51... hxg4 {[%clk 0:00:38.5]} 52. hxg4 {[%clk 0:00:11.5]} 52... Bb6
{[%clk 0:00:34.6]} 53. Be5 {[%clk 0:00:10.4]} 1/2-1/2

[Event "GrandPrix_29.05"]
[Site "Chess.com"]
[Date "2020.05.29"]
[Round "1"]
[White "GM_Levan_Pantsulaia"]
[Black "hypert"]
[Result "1-0"]
[WhiteElo "2646"]
[BlackElo "2138"]
[TimeControl "600+2"]
[EndTime "9:24:22 PDT"]
[Termination "GM_Levan_Pantsulaia won by resignation"]

1. Nf3 {[%clk 0:10:01]} 1... d5 {[%clk 0:09:59.8]} 2. g3 {[%clk 0:10:01.1]} 2...
g6 {[%clk 0:09:59.6]} 3. Bg2 {[%clk 0:10:01.3]} 3... Bg7 {[%clk 0:10:00.8]} 4.
O-O {[%clk 0:10:02]} 4... e5 {[%clk 0:09:54.2]} 5. d3 {[%clk 0:10:02.6]} 5...
Ne7 {[%clk 0:09:54.6]} 6. e4 {[%clk 0:10:01.5]} 6... d4 {[%clk 0:09:37.5]} 7. c3
{[%clk 0:09:28.9]} 7... c5 {[%clk 0:09:35.1]} 8. a3 {[%clk 0:08:21.2]} 8... Nbc6
{[%clk 0:09:24.3]} 9. cxd4 {[%clk 0:08:01.9]} 9... cxd4 {[%clk 0:09:04.5]} 10.
b4 {[%clk 0:08:02.2]} 10... O-O {[%clk 0:08:48.2]} 11. Nbd2 {[%clk 0:07:49.4]}
11... f6 {[%clk 0:08:23.3]} 12. Nb3 {[%clk 0:07:28.2]} 12... Kh8 {[%clk
0:06:47]} 13. b5 {[%clk 0:07:21]} 13... Na5 {[%clk 0:06:34]} 14. Bd2 {[%clk
0:07:21.7]} 14... Nxb3 {[%clk 0:06:03.5]} 15. Qxb3 {[%clk 0:07:23.6]} 15... Bd7
{[%clk 0:05:47.2]} 16. Bb4 {[%clk 0:06:54.6]} 16... Re8 {[%clk 0:05:46.9]} 17.
Nd2 {[%clk 0:06:27.8]} 17... Nc8 {[%clk 0:05:33.8]} 18. a4 {[%clk 0:06:11.4]}
18... Be6 {[%clk 0:05:32.2]} 19. Qc2 {[%clk 0:05:59.3]} 19... Nb6 {[%clk
0:05:21]} 20. f4 {[%clk 0:04:53.4]} 20... Rc8 {[%clk 0:04:50.8]} 21. Qd1 {[%clk
0:04:53.2]} 21... Qd7 {[%clk 0:04:27.3]} 22. Nf3 {[%clk 0:04:50.7]} 22... exf4
{[%clk 0:03:51.9]} 23. gxf4 {[%clk 0:04:52.6]} 23... f5 {[%clk 0:03:53.1]} 24.
Ne5 {[%clk 0:03:52.7]} 24... Qc7 {[%clk 0:03:33.8]} 25. a5 {[%clk 0:01:49.1]}
25... Nd7 {[%clk 0:03:32.4]} 26. exf5 {[%clk 0:01:50.1]} 26... gxf5 {[%clk
0:03:13.2]} 27. Rc1 {[%clk 0:01:42]} 27... Qb8 {[%clk 0:01:32.4]} 28. Qh5 {[%clk
0:01:41.8]} 28... Nxe5 {[%clk 0:01:12.5]} 29. fxe5 {[%clk 0:01:42.9]} 29... Bxe5
{[%clk 0:00:59.1]} 30. Rce1 {[%clk 0:00:48.3]} 30... Bd6 {[%clk 0:00:36.2]} 31.
Qh4 {[%clk 0:00:34.1]} 31... Be5 {[%clk 0:00:33.3]} 32. Bd2 {[%clk 0:00:18.3]}
32... Rc2 {[%clk 0:00:24.8]} 33. Bg5 {[%clk 0:00:19.1]} 33... Qc7 {[%clk
0:00:21.6]} 34. Rf2 {[%clk 0:00:14]} 34... Rxf2 {[%clk 0:00:20.6]} 35. Qxf2
{[%clk 0:00:15.4]} 35... Bg7 {[%clk 0:00:17.9]} 36. Qxf5 {[%clk 0:00:06.5]}
36... Bxf5 {[%clk 0:00:09.9]} 37. Rxe8+ {[%clk 0:00:06.7]} 37... Bf8 {[%clk
0:00:11.5]} 38. Bf6+ {[%clk 0:00:07.9]} 38... Kg8 {[%clk 0:00:12.2]} 39. Bd5+
{[%clk 0:00:08.7]} 39... Qf7 {[%clk 0:00:12.5]} 40. Bxf7+ {[%clk 0:00:09.3]}
40... Kxf7 {[%clk 0:00:14.4]} 41. Rb8 {[%clk 0:00:09.4]} 41... Bb4 {[%clk
0:00:11.7]} 42. Bxd4 {[%clk 0:00:09.5]} 42... Bxa5 {[%clk 0:00:12]} 43. Rxb7+
{[%clk 0:00:10.6]} 43... Kg6 {[%clk 0:00:11.5]} 44. Rxa7 {[%clk 0:00:11.8]}
44... Bb4 {[%clk 0:00:12.7]} 45. b6 {[%clk 0:00:11.4]} 45... Bxd3 {[%clk
0:00:12.4]} 46. b7 {[%clk 0:00:11.6]} 46... Bc5 {[%clk 0:00:14.3]} 47. Bxc5
{[%clk 0:00:11.7]} 1-0

[Event "GrandPrix_29.05"]
[Site "Chess.com"]
[Date "2020.05.29"]
[Round "1"]
[White "Alexander_Donchenko"]
[Black "ZverevLev"]
[Result "1-0"]
[WhiteElo "2646"]
[BlackElo "2176"]
[TimeControl "600+2"]
[EndTime "9:24:24 PDT"]
[Termination "Alexander_Donchenko won by resignation"]

1. d4 {[%clk 0:10:01.9]} 1... Nf6 {[%clk 0:09:59.1]} 2. c4 {[%clk 0:10:02.4]}
2... e6 {[%clk 0:09:58.9]} 3. g3 {[%clk 0:10:02.7]} 3... d5 {[%clk 0:09:58.6]}
4. Bg2 {[%clk 0:10:03.6]} 4... c6 {[%clk 0:09:59]} 5. Nd2 {[%clk 0:09:58.6]}
5... Be7 {[%clk 0:09:55.7]} 6. Ngf3 {[%clk 0:09:57.4]} 6... O-O {[%clk
0:09:55.6]} 7. O-O {[%clk 0:09:58.4]} 7... b6 {[%clk 0:09:55.7]} 8. Qc2 {[%clk
0:09:56.1]} 8... Bb7 {[%clk 0:09:55.3]} 9. e4 {[%clk 0:09:56.7]} 9... Na6 {[%clk
0:09:56.1]} 10. a3 {[%clk 0:09:53.6]} 10... c5 {[%clk 0:09:37.7]} 11. exd5
{[%clk 0:09:53.8]} 11... exd5 {[%clk 0:09:37.1]} 12. dxc5 {[%clk 0:09:36.5]}
12... Nxc5 {[%clk 0:09:34.5]} 13. b4 {[%clk 0:09:37.1]} 13... Ne6 {[%clk
0:09:34.1]} 14. Bb2 {[%clk 0:08:56.3]} 14... Rc8 {[%clk 0:09:32.2]} 15. Rfd1
{[%clk 0:08:14.7]} 15... dxc4 {[%clk 0:08:55.4]} 16. Nxc4 {[%clk 0:08:12.8]}
16... Qc7 {[%clk 0:08:54.7]} 17. Rac1 {[%clk 0:08:09.2]} 17... b5 {[%clk
0:07:38]} 18. Ne3 {[%clk 0:07:49.8]} 18... Qb6 {[%clk 0:07:37]} 19. Qe2 {[%clk
0:07:27.8]} 19... Rxc1 {[%clk 0:07:03.1]} 20. Rxc1 {[%clk 0:07:28.3]} 20... Rd8
{[%clk 0:06:59.8]} 21. Nf5 {[%clk 0:07:22.4]} 21... Bf8 {[%clk 0:06:43.2]} 22.
Bxf6 {[%clk 0:06:21.5]} 22... gxf6 {[%clk 0:06:42.3]} 23. N3h4 {[%clk
0:06:04.8]} 23... Bxg2 {[%clk 0:06:31.8]} 24. Nxg2 {[%clk 0:05:52.1]} 24... a5
{[%clk 0:06:00.5]} 25. Nge3 {[%clk 0:05:33.5]} 25... axb4 {[%clk 0:05:56.6]} 26.
axb4 {[%clk 0:05:35.4]} 26... Kh8 {[%clk 0:05:12.6]} 27. Qh5 {[%clk 0:05:00.2]}
27... Qb7 {[%clk 0:04:38.6]} 28. h4 {[%clk 0:04:25.2]} 28... Ng7 {[%clk
0:03:34.9]} 29. Nxg7 {[%clk 0:04:08.8]} 29... Bxg7 {[%clk 0:03:36.8]} 30. Rc5
{[%clk 0:03:17.5]} 30... Ra8 {[%clk 0:03:23.5]} 31. Nd5 {[%clk 0:03:08.2]} 31...
Qd7 {[%clk 0:03:04.1]} 32. Kg2 {[%clk 0:02:52.4]} 32... Kg8 {[%clk 0:02:25.6]}
33. Rc7 {[%clk 0:02:34.9]} 33... Qe8 {[%clk 0:02:24.9]} 34. Re7 {[%clk
0:02:19.1]} 34... Qf8 {[%clk 0:02:23.8]} 35. Rb7 {[%clk 0:02:10.9]} 35... Qe8
{[%clk 0:02:08.8]} 36. Qf3 {[%clk 0:01:56.9]} 36... Rd8 {[%clk 0:01:54.4]} 37.
Ne7+ {[%clk 0:01:36.7]} 37... Kh8 {[%clk 0:01:51.9]} 38. Nf5 {[%clk 0:01:37.6]}
38... Qe6 {[%clk 0:01:19.4]} 39. Rxb5 {[%clk 0:01:31.6]} 39... Qc4 {[%clk
0:01:15.4]} 40. Rb7 {[%clk 0:01:25]} 40... Bf8 {[%clk 0:01:14.1]} 41. Ne3 {[%clk
0:01:21.8]} 41... Qe6 {[%clk 0:01:13]} 42. Rb5 {[%clk 0:00:59.6]} 42... Bh6
{[%clk 0:01:01.2]} 43. Nd5 {[%clk 0:00:54.7]} 43... Bg7 {[%clk 0:00:53.8]} 44.
Nf4 {[%clk 0:00:46.2]} 44... Qc4 {[%clk 0:00:50]} 45. Rb7 {[%clk 0:00:42.5]}
45... Bf8 {[%clk 0:00:49.9]} 46. Nh5 {[%clk 0:00:38.6]} 46... f5 {[%clk
0:00:30.1]} 47. Qxf5 {[%clk 0:00:30.6]} 47... Qc6+ {[%clk 0:00:29.9]} 48. Qf3
{[%clk 0:00:31.8]} 48... Qxf3+ {[%clk 0:00:26.9]} 49. Kxf3 {[%clk 0:00:33.7]}
49... Rd3+ {[%clk 0:00:26.1]} 50. Ke2 {[%clk 0:00:28.9]} 50... Rb3 {[%clk
0:00:18.7]} 51. Rxf7 {[%clk 0:00:28.3]} 51... Rb2+ {[%clk 0:00:18.4]} 52. Kf3
{[%clk 0:00:28.5]} 52... Bxb4 {[%clk 0:00:10.4]} 53. Nf6 {[%clk 0:00:25.2]} 1-0

[Event "GrandPrix_29.05"]
[Site "Chess.com"]
[Date "2020.05.29"]
[Round "1"]
[White "farhadtahirov"]
[Black "lilleper1"]
[Result "1/2-1/2"]
[WhiteElo "2040"]
[BlackElo "2288"]
[TimeControl "600+2"]
[EndTime "9:24:24 PDT"]
[Termination "Game drawn by repetition"]

1. c4 {[%clk 0:09:52.8]} 1... c5 {[%clk 0:10:00.1]} 2. Nc3 {[%clk 0:09:53.6]}
2... Nc6 {[%clk 0:10:00.5]} 3. Nf3 {[%clk 0:09:50.9]} 3... g6 {[%clk 0:09:59.4]}
4. g3 {[%clk 0:08:48]} 4... Bg7 {[%clk 0:09:59.7]} 5. Bg2 {[%clk 0:08:49.5]}
5... d6 {[%clk 0:09:57.2]} 6. O-O {[%clk 0:08:48.2]} 6... e6 {[%clk 0:09:58.1]}
7. e4 {[%clk 0:08:46.3]} 7... Nge7 {[%clk 0:09:47.5]} 8. d3 {[%clk 0:08:45.1]}
8... O-O {[%clk 0:09:39.2]} 9. Be3 {[%clk 0:08:31]} 9... Nd4 {[%clk 0:09:36.6]}
10. Qd2 {[%clk 0:08:22.4]} 10... Nec6 {[%clk 0:09:23]} 11. Bh6 {[%clk
0:08:16.7]} 11... Nxf3+ {[%clk 0:08:54.6]} 12. Bxf3 {[%clk 0:08:16.3]} 12... Nd4
{[%clk 0:08:29.6]} 13. Bg2 {[%clk 0:08:09.7]} 13... Bd7 {[%clk 0:08:17.3]} 14.
Rab1 {[%clk 0:06:38.7]} 14... Rb8 {[%clk 0:07:26.3]} 15. Bf4 {[%clk 0:05:34.8]}
15... Bc6 {[%clk 0:07:15.6]} 16. b4 {[%clk 0:05:06.5]} 16... b6 {[%clk
0:06:20.5]} 17. bxc5 {[%clk 0:03:56.8]} 17... bxc5 {[%clk 0:06:12.2]} 18. Ne2
{[%clk 0:03:31.2]} 18... Nxe2+ {[%clk 0:04:56.8]} 19. Qxe2 {[%clk 0:03:30.4]}
19... Bd4 {[%clk 0:04:48.6]} 20. Bh6 {[%clk 0:03:25.6]} 20... Re8 {[%clk
0:04:47.3]} 21. h4 {[%clk 0:03:19.8]} 21... Qa5 {[%clk 0:03:49.4]} 22. h5 {[%clk
0:03:03.8]} 22... Rb6 {[%clk 0:03:43.4]} 23. Bh3 {[%clk 0:02:17.7]} 23... Reb8
{[%clk 0:03:11.4]} 24. Rxb6 {[%clk 0:01:50]} 24... Qxb6 {[%clk 0:03:12]} 25. Qf3
{[%clk 0:01:13.6]} 25... Qb2 {[%clk 0:02:53.1]} 26. Be3 {[%clk 0:01:12.3]} 26...
Be5 {[%clk 0:02:32.8]} 27. Kg2 {[%clk 0:01:08.4]} 27... Qc2 {[%clk 0:02:02.3]}
28. hxg6 {[%clk 0:00:56.2]} 28... hxg6 {[%clk 0:02:01.1]} 29. Bg5 {[%clk
0:00:43]} 29... Qxa2 {[%clk 0:01:47.7]} 30. Rh1 {[%clk 0:00:37.3]} 30... Rb1
{[%clk 0:01:11.2]} 31. Bxe6 {[%clk 0:00:19.9]} 31... fxe6 {[%clk 0:01:08.6]} 32.
Rh6 {[%clk 0:00:19.3]} 32... Kg7 {[%clk 0:00:40]} 33. Qg4 {[%clk 0:00:07.3]}
33... Be8 {[%clk 0:00:23.9]} 34. Qxe6 {[%clk 0:00:04.8]} 34... Bd4 {[%clk
0:00:14.4]} 35. Qe7+ {[%clk 0:00:04.7]} 35... Bf7 {[%clk 0:00:14.6]} 36. Rh7+
{[%clk 0:00:06.1]} 36... Kxh7 {[%clk 0:00:13.2]} 37. Qxf7+ {[%clk 0:00:07.2]}
37... Kh8 {[%clk 0:00:10.9]} 38. Qf8+ {[%clk 0:00:08.1]} 38... Kh7 {[%clk
0:00:11.6]} 39. Qh6+ {[%clk 0:00:09.1]} 39... Kg8 {[%clk 0:00:11.4]} 40. Qxg6+
{[%clk 0:00:10.7]} 40... Kf8 {[%clk 0:00:12.6]} 41. Qxd6+ {[%clk 0:00:05.2]}
41... Kf7 {[%clk 0:00:10.4]} 42. Qd7+ {[%clk 0:00:05.9]} 42... Kg6 {[%clk
0:00:07.9]} 43. Qf5+ {[%clk 0:00:06.7]} 43... Kg7 {[%clk 0:00:08.9]} 44. Qd7+
{[%clk 0:00:06]} 44... Kg6 {[%clk 0:00:09.1]} 45. Qe6+ {[%clk 0:00:03.8]} 45...
Kg7 {[%clk 0:00:05.6]} 46. Qd7+ {[%clk 0:00:03.1]} 46... Kg6 {[%clk 0:00:05.2]}
1/2-1/2

[Event "GrandPrix_29.05"]
[Site "Chess.com"]
[Date "2020.05.29"]
[Round "1"]
[White "HElissalt"]
[Black "wnstop"]
[Result "0-1"]
[WhiteElo "1934"]
[BlackElo "2468"]
[TimeControl "600+2"]
[EndTime "9:24:27 PDT"]
[Termination "wnstop won by resignation"]

1. d4 {[%clk 0:09:56.7]} 1... Nf6 {[%clk 0:09:59.1]} 2. c4 {[%clk 0:09:56.9]}
2... g6 {[%clk 0:09:58.3]} 3. Nc3 {[%clk 0:09:56.6]} 3... Bg7 {[%clk 0:09:58.7]}
4. e4 {[%clk 0:09:57.5]} 4... d6 {[%clk 0:09:54.4]} 5. Be2 {[%clk 0:09:57.1]}
5... O-O {[%clk 0:09:53.8]} 6. Be3 {[%clk 0:09:57.8]} 6... Na6 {[%clk
0:09:15.8]} 7. h3 {[%clk 0:08:12.3]} 7... e5 {[%clk 0:07:58.5]} 8. d5 {[%clk
0:07:37.4]} 8... Nc5 {[%clk 0:07:53.6]} 9. Qc2 {[%clk 0:07:31.1]} 9... c6 {[%clk
0:06:54.4]} 10. Nf3 {[%clk 0:06:50.6]} 10... cxd5 {[%clk 0:06:13.7]} 11. cxd5
{[%clk 0:06:49.9]} 11... Nh5 {[%clk 0:05:32.3]} 12. O-O {[%clk 0:06:13.4]} 12...
Nf4 {[%clk 0:05:12.7]} 13. Rfe1 {[%clk 0:04:37.9]} 13... Nxe2+ {[%clk
0:02:38.5]} 14. Rxe2 {[%clk 0:04:32.5]} 14... a6 {[%clk 0:02:39.1]} 15. b4
{[%clk 0:04:04.8]} 15... Nd7 {[%clk 0:02:35.9]} 16. Rc1 {[%clk 0:04:02.6]} 16...
h6 {[%clk 0:01:54.5]} 17. Nd2 {[%clk 0:02:42.2]} 17... f5 {[%clk 0:01:34.1]} 18.
exf5 {[%clk 0:02:30]} 18... gxf5 {[%clk 0:01:34.6]} 19. f4 {[%clk 0:02:31.2]}
19... exf4 {[%clk 0:01:02]} 20. Bxf4 {[%clk 0:02:29.9]} 20... Ne5 {[%clk
0:01:02.8]} 21. Kh1 {[%clk 0:02:10.4]} 21... Bd7 {[%clk 0:01:00.6]} 22. Nf3
{[%clk 0:01:30.8]} 22... Nxf3 {[%clk 0:00:46.4]} 23. gxf3 {[%clk 0:01:31.2]}
23... Qh4 {[%clk 0:00:40.7]} 24. Qd2 {[%clk 0:00:59.9]} 24... Rac8 {[%clk
0:00:30.4]} 25. Rg2 {[%clk 0:00:37.1]} 25... Qxh3+ {[%clk 0:00:13.4]} 26. Kg1
{[%clk 0:00:35]} 26... Kh7 {[%clk 0:00:08.1]} 27. Ne2 {[%clk 0:00:16.1]} 27...
Rxc1+ {[%clk 0:00:07.3]} 28. Nxc1 {[%clk 0:00:17.1]} 28... Qxf3 {[%clk
0:00:07.3]} 29. Ne2 {[%clk 0:00:15.4]} 29... Qe4 {[%clk 0:00:08.4]} 30. Ng3
{[%clk 0:00:09.7]} 30... Qd4+ {[%clk 0:00:09.4]} 31. Qxd4 {[%clk 0:00:10.4]}
31... Bxd4+ {[%clk 0:00:11.3]} 32. Kh2 {[%clk 0:00:11.3]} 32... Be5 {[%clk
0:00:11]} 33. Nh5 {[%clk 0:00:11.9]} 33... Bxf4+ {[%clk 0:00:08.5]} 34. Nxf4
{[%clk 0:00:13]} 34... Re8 {[%clk 0:00:09.9]} 35. Nh5 {[%clk 0:00:12.6]} 35...
Rf8 {[%clk 0:00:04.1]} 36. Rg7+ {[%clk 0:00:12.5]} 36... Kh8 {[%clk 0:00:05.5]}
37. Rxd7 {[%clk 0:00:14.1]} 37... f4 {[%clk 0:00:04]} 38. Kg2 {[%clk 0:00:15.3]}
38... Rf5 {[%clk 0:00:04.2]} 39. Ng7 {[%clk 0:00:11.8]} 39... Rxd5 {[%clk
0:00:05.2]} 40. Kf3 {[%clk 0:00:12.7]} 40... Rd4 {[%clk 0:00:05.9]} 41. Ne6
{[%clk 0:00:13.1]} 41... Rxb4 {[%clk 0:00:06.6]} 42. Nxf4 {[%clk 0:00:14.3]}
42... Ra4 {[%clk 0:00:07.5]} 43. Ng6+ {[%clk 0:00:14.7]} 43... Kg8 {[%clk
0:00:08.7]} 44. Ne7+ {[%clk 0:00:13.5]} 44... Kf7 {[%clk 0:00:09.5]} 45. Nc8+
{[%clk 0:00:10.8]} 45... Ke6 {[%clk 0:00:10.1]} 46. Rxd6+ {[%clk 0:00:12.1]}
46... Ke5 {[%clk 0:00:10.9]} 47. Rxh6 {[%clk 0:00:13.1]} 47... Rxa2 {[%clk
0:00:11.7]} 48. Rb6 {[%clk 0:00:14.1]} 48... Rc2 {[%clk 0:00:10.7]} 49. Ne7
{[%clk 0:00:13.9]} 49... Rc7 {[%clk 0:00:07]} 50. Ke3 {[%clk 0:00:14.6]} 50...
Rxe7 {[%clk 0:00:07.6]} 51. Kd3 {[%clk 0:00:14.8]} 51... Rc7 {[%clk 0:00:08.7]}
0-1

[Event "GrandPrix_29.05"]
[Site "Chess.com"]
[Date "2020.05.29"]
[Round "1"]
[White "Chessialist"]
[Black "Man-Chuk"]
[Result "1-0"]
[WhiteElo "2281"]
[BlackElo "2167"]
[TimeControl "600+2"]
[EndTime "9:24:28 PDT"]
[Termination "Chessialist won by checkmate"]

1. c4 {[%clk 0:09:55.9]} 1... e5 {[%clk 0:09:39.7]} 2. Nc3 {[%clk 0:09:51.6]}
2... Nf6 {[%clk 0:09:32.3]} 3. g3 {[%clk 0:09:51.4]} 3... d5 {[%clk 0:09:30.6]}
4. cxd5 {[%clk 0:09:52.1]} 4... Nxd5 {[%clk 0:09:32.5]} 5. Bg2 {[%clk
0:09:53.6]} 5... Nb6 {[%clk 0:09:32.4]} 6. Nf3 {[%clk 0:09:47.9]} 6... Nc6
{[%clk 0:09:31.7]} 7. O-O {[%clk 0:09:48.8]} 7... Be7 {[%clk 0:09:02]} 8. d3
{[%clk 0:08:50.5]} 8... O-O {[%clk 0:09:01.1]} 9. Be3 {[%clk 0:08:49.1]} 9...
Be6 {[%clk 0:08:43.9]} 10. Rc1 {[%clk 0:08:47.1]} 10... f6 {[%clk 0:08:24.7]}
11. a3 {[%clk 0:08:46.6]} 11... a5 {[%clk 0:08:05.7]} 12. Ne4 {[%clk 0:08:32.5]}
12... Re8 {[%clk 0:06:47.6]} 13. Nc5 {[%clk 0:08:03.8]} 13... Bxc5 {[%clk
0:06:39.3]} 14. Rxc5 {[%clk 0:08:05.7]} 14... Qd7 {[%clk 0:06:29.5]} 15. Qd2
{[%clk 0:07:53.1]} 15... Bh3 {[%clk 0:06:06.1]} 16. Bxh3 {[%clk 0:06:47.7]}
16... Qxh3 {[%clk 0:06:08]} 17. Rb5 {[%clk 0:06:48.8]} 17... Ra6 {[%clk
0:04:08.5]} 18. Bxb6 {[%clk 0:06:43.2]} 18... Rxb6 {[%clk 0:04:03.4]} 19. Rxb6
{[%clk 0:06:43.7]} 19... cxb6 {[%clk 0:04:05.3]} 20. Qe3 {[%clk 0:06:45]} 20...
f5 {[%clk 0:03:12.5]} 21. Qxb6 {[%clk 0:06:26.9]} 21... h6 {[%clk 0:02:38.8]}
22. Qxb7 {[%clk 0:04:55.5]} 22... Nd4 {[%clk 0:02:38.1]} 23. Re1 {[%clk
0:04:43.4]} 23... Nxf3+ {[%clk 0:02:16]} 24. Qxf3 {[%clk 0:04:42.1]} 24... e4
{[%clk 0:02:11.7]} 25. dxe4 {[%clk 0:04:38.8]} 25... fxe4 {[%clk 0:02:13.1]} 26.
Qb3+ {[%clk 0:04:08.7]} 26... Kh7 {[%clk 0:02:03.6]} 27. Qb5 {[%clk 0:03:35.5]}
27... Re7 {[%clk 0:01:17.1]} 28. Qxa5 {[%clk 0:03:21.8]} 28... e3 {[%clk
0:00:52.9]} 29. f3 {[%clk 0:03:22.5]} 29... Qe6 {[%clk 0:00:26.6]} 30. Qc3
{[%clk 0:02:25]} 30... Rd7 {[%clk 0:00:24.8]} 31. Qc2+ {[%clk 0:02:06.1]} 31...
g6 {[%clk 0:00:25.1]} 32. Rd1 {[%clk 0:02:02]} 32... h5 {[%clk 0:00:15.4]} 33.
Rxd7+ {[%clk 0:01:36.8]} 33... Qxd7 {[%clk 0:00:17.3]} 34. Qd3 {[%clk
0:01:37.8]} 34... Qe6 {[%clk 0:00:11.7]} 35. Kg2 {[%clk 0:01:29.2]} 35... h4
{[%clk 0:00:12.9]} 36. g4 {[%clk 0:01:30.3]} 36... Qe5 {[%clk 0:00:11.9]} 37. a4
{[%clk 0:01:14.2]} 37... Qxb2 {[%clk 0:00:08.3]} 38. Qxe3 {[%clk 0:01:15.3]}
38... Qa2 {[%clk 0:00:06.4]} 39. Qe7+ {[%clk 0:01:15.4]} 39... Kg8 {[%clk
0:00:06.6]} 40. Qe4 {[%clk 0:01:11.4]} 40... Kg7 {[%clk 0:00:06.3]} 41. Qe5+
{[%clk 0:01:08.9]} 41... Kh7 {[%clk 0:00:06.3]} 42. a5 {[%clk 0:01:07.1]} 42...
g5 {[%clk 0:00:03.6]} 43. Qe7+ {[%clk 0:00:46.7]} 43... Kg8 {[%clk 0:00:03.9]}
44. Qxg5+ {[%clk 0:00:47.5]} 44... Kf7 {[%clk 0:00:05.3]} 45. Qe5 {[%clk
0:00:46.2]} 45... Qa3 {[%clk 0:00:03]} 46. g5 {[%clk 0:00:42.3]} 46... Kg8
{[%clk 0:00:04]} 47. g6 {[%clk 0:00:41.2]} 47... h3+ {[%clk 0:00:05.1]} 48. Kxh3
{[%clk 0:00:32.7]} 48... Qa4 {[%clk 0:00:06.6]} 49. Qe6+ {[%clk 0:00:32.7]}
49... Kg7 {[%clk 0:00:06.8]} 50. Qf7+ {[%clk 0:00:33.9]} 50... Kh6 {[%clk
0:00:07.2]} 51. f4 {[%clk 0:00:21.5]} 51... Qxa5 {[%clk 0:00:04.8]} 52. Qh7#
{[%clk 0:00:21.8]} 1-0